Cogmind - Beta 15 @@@ ROGUE MODE // 2025.10.05 @ 04:24:08 Player: shapeshifter Result: Self-destructed Performance ------------- Evolutions (2) 1000 Regions Visited (3) 600 Robots Destroyed (21) 105 Value Destroyed (625) 625 Prototype IDs (1) 20 Alien Tech Used (0) 0 Bonus (0) 0 TOTAL SCORE: 2350 Bonus ------- None Cogmind --------- Core Integrity 365/550 Matter 288/300 Energy 250/250 System Corruption 0% Temperature Cool (0) Movement Treading (170) Location -8/Materials Parts ------- > --- POWER (1) -------- Ion Engine > --- PROPULSION (3) --- Armored Treads VSS Leg VSS Leg > --- UTILITY (4) ------ Improved Heat Sink Small Storage Unit Seismic Detector > --- WEAPON (3) ------- Improved Assault Rifle > --- INVENTORY (8) ---- Medium Reactive Plating Medium Reactive Plating Improved EM Pulse Cannon Improved EM Pulse Cannon Improved EM Pulse Cannon Remote Datajack Peak State ------------ > --- POWER ------------ Light Deuterium Engine > --- PROPULSION ------- VSS Leg VSS Leg VSS Leg > --- UTILITY ---------- Improved Heat Sink Small Storage Unit Seismic Detector Medium Reactive Plating > --- WEAPON ----------- Improved EM Pulse Cannon Improved Assault Rifle Improved Assault Rifle > --- INVENTORY -------- High-capacity Matter Pod Recoil Stabilizer Medium Reactive Plating Medium Reactive Plating Medium Reactive Plating Improved EM Pulse Cannon Improved EM Pulse Cannon Remote Datajack [Rating: 33] Favorites ----------- Power Light Ion Engine Engine Light Ion Engine Propulsion Light Treads Treads Light Treads Leg VSS Leg Wheel Wheel Utility Small Storage Unit Device Seismic Detector Storage Small Storage Unit Protection Medium Reactive Plating Weapon Assault Rifle Energy Cannon Improved EM Pulse Cannon Ballistic Gun Assault Rifle Build | -11 -10 -10 -8 ------- Run | Yrd Mat Sub Mat Slots Evolved 4 | . . . 4 Power . | . . . . Propulsion 1 | . . . 1 Utility 2 | . . . 2 Weapon 1 | . . . 1 Parts Attached 27 | 7 . 3 17 Power 4 | 1 . 1 2 Engine 4 | 1 . 1 2 Core . | . . . . Reactor . | . . . . Propulsion 9 | 2 . 1 6 Treads 3 | 2 . . 1 Leg 3 | . . . 3 Wheel 3 | . . 1 2 Hover . | . . . . Flight . | . . . . Utility 6 | 2 . . 4 Device 4 | 1 . . 3 Storage 1 | 1 . . . Processor . | . . . . Hackware . | . . . . Protection 1 | . . . 1 Artifact . | . . . . Weapon 8 | 2 . 1 5 Energy Gun . | . . . . Energy Cannon 3 | . . . 3 Ballistic Gun 5 | 2 . 1 2 Ballistic Cannon . | . . . . Launcher . | . . . . Special Weapon . | . . . . Impact Weapon . | . . . . Slashing Weapon . | . . . . Piercing Weapon . | . . . . Special Melee Weapon . | . . . . Unidentified Prototypes 1 | . . . 1 Parts Lost 6 | . . 2 4 Power . | . . . . Propulsion 2 | . . . 2 Utility . | . . . . Weapon 4 | . . 2 2 Highest Loss Streak 2 | . . 2 2 To Critical Strikes . | . . . . Average Backups 6 | 4 6 6 6 Power . | . 1 1 . Propulsion 1 | 1 2 2 . Utility 2 | . 2 3 3 Weapon 1 | 1 1 . 1 Tool/Special . | . . . . Unused Backups 9 | 1 . . 8 Power . | . . . . Propulsion . | . . . . Utility 7 | 1 . . 6 Weapon 1 | . . . 1 Tool/Special 1 | . . . 1 Average Slot Usage (%) 87 | . 100 85 79 Engine 11 | . 14 14 9 Treads 14 | . 28 15 4 Leg 4 | . . . 10 Wheel 7 | . . 12 9 Device 16 | . 14 14 20 Storage 11 | . 14 14 9 Energy Cannon 2 | . . . 5 Ballistic Gun 16 | . 28 14 9 Peak Build Rating 33 | 8 8 8 33 Average Rating 12 | 5 7 7 21 On Entrance 5 | . 7 8 8 Naked Turns . | . . . . Heaviest Build 53 | 13 13 13 53 Greatest Support 40 | 40 40 40 40 Greatest Overweight (x) 4 | . . 1 4 Average Overweight (x) . | . . . . Largest Inventory Capacity 8 | 8 8 8 8 Average Capacity 7 | 7 8 8 8 Most Carried 8 | 7 7 8 8 Average Carried 6 | 4 6 6 6 Final Capacity 8 | 8 8 8 8 Final Carried 8 | 5 7 8 6 Class Distribution -------------------- 84% | Mutant 11% | Scavenger-Mutant 3% | Tank Dominant Class ---------------- Mutant | -10/Materials Mutant | -10/Subcaves Mutant | -8/Materials Resources | -11 -10 -10 -8 ----------- Run | Yrd Mat Sub Mat Matter Collected 838 | 288 143 69 338 Remotely . | . . . . Salvage Created 765 | 84 180 69 432 Parts 43 | 11 6 7 19 Haulers Intercepted 1 | . . . 1 Recyclers Shooed . | . . . . Parts Field Recycled . | . . . . Retrieved Matter . | . . . . Parts Self-Destructed 11 | . . 11 . Prevented . | . . . . Kills | -11 -10 -10 -8 ------- Run | Yrd Mat Sub Mat Combat Hostiles Destroyed 15 | . 4 2 9 Melee 1 | . . . 1 Guns 14 | . 4 2 8 Classes Destroyed 9 | 1 1 1 6 Tunneler 4 | 4 . . . Hauler 1 | . . . 1 Watcher 1 | . . . 1 Swarmer 3 | . . . 3 Grunt 7 | . 4 . 3 Duelist 1 | . . . 1 Sentry 1 | . . . 1 Hunter 1 | . . . 1 Subdweller 2 | . . 2 . Best Kill Streak 3 | 1 2 2 3 Combat Bots Only 3 | . 2 2 3 Max Kills in Single Turn 1 | 1 1 1 1 Gunslinging . | . . . . Exploded . | . . . . Melee 1 | . . . 1 Uniques/NPCs Destroyed . | . . . . Combat | -11 -10 -10 -8 -------- Run | Yrd Mat Sub Mat Hostile Shots Fired 148 | . 32 27 89 Missed 40 | . 9 7 24 Hits 108 | . 23 20 65 Melee 6 | . . . 6 Projectile 102 | . 23 20 59 Critical Strikes 3 | . 1 . 2 Damage Taken 1736 | . 319 396 1021 Core 323 | . 54 84 185 Absorbed by Shields . | . . . . Ignored by Resistances 71 | . . . 71 Core Remaining (%) 72 | 100 . 44 . Volleys Fired 91 | 6 23 14 48 Largest 3 | 2 2 2 3 Hottest 207 | 40 40 40 207 Shots Fired 137 | 12 46 16 63 Gun 129 | 12 46 16 55 Cannon 8 | . . . 8 Launcher . | . . . . Special . | . . . . Kinetic 129 | 12 46 16 55 Thermal . | . . . . Explosive . | . . . . Electromagnetic 8 | . . . 8 Robot Hit Streak 8 | 3 6 6 8 Robot Miss Streak 3 | 3 3 2 2 Penetration Max . | . . . . Secondary Targets . | . . . . Shots Hit Robots 95 | 7 31 11 46 Core Hits 44 | 4 11 6 23 Critical Kills . | . . . . Critical Parts Destroyed . | . . . . Critical Strikes . | . . . . Melee Attacks . | . . . . Impact . | . . . . Slashing . | . . . . Piercing . | . . . . Sneak Attacks . | . . . . Combat Hostiles . | . . . . Follow-up Attacks . | . . . . Damage Inflicted 1350 | 90 394 115 751 Guns 1154 | 90 394 115 555 Cannons 190 | . . . 190 Explosions . | . . . . Melee . | . . . . Ramming 6 | . . . 6 Kinetic 1154 | 90 394 115 555 Thermal . | . . . . Explosive . | . . . . Electromagnetic 190 | . . . 190 Impact . | . . . . Slashing . | . . . . Piercing . | . . . . Highest Corruption . | . . . . Average Corruption . | . . . . Corruption Purged . | . . . . Corruption Blocked . | . . . . Overload Shots . | . . . . Overflow Damage . | . . . . Projectiles . | . . . . Explosions . | . . . . Melee . | . . . . Knockbacks . | . . . . Impact . | . . . . Kinetic . | . . . . Secondary . | . . . . Self-Inflicted Damage . | . . . . Shots . | . . . . Rammed 6 | . . . 6 Targets Rammed 6 | . . . 6 Kicked . | . . . . Crushed . | . . . . Highest Temperature 102 | . 20 . 102 Average Temperature 18 | . 5 . 42 Received Heat Transfer 639 | . 198 54 387 Siege Activations . | . . . . Martial Activations . | . . . . Shielding Activations . | . . . . Robots Disrupted . | . . . . Combat Hostiles . | . . . . Robots Corrupted . | . . . . Combat Hostiles . | . . . . Parts Fried 3 | . . . 3 Impact Corruptions . | . . . . Robots Melted . | . . . . Combat Hostiles . | . . . . Parts Melted . | . . . . Heat Transferred . | . . . . Parts Sabotaged . | . . . . Parts Stolen . | . . . . Parts Stripped . | . . . . Power Chain Reactions . | . . . . Alert | -11 -10 -10 -8 ------- Run | Yrd Mat Sub Mat Maximum Alert Level . | . . . . Low Security (%) 100 | 100 100 . 100 Level 1 . | . . . . Level 2 . | . . . . Level 3 . | . . . . Level 4 . | . . . . Level 5 . | . . . . High Security . | . . . . Max Security . | . . . . Peak Influence 101 | 5 70 . 101 Initial 3 | . 3 . . Average 20 | 1 22 . 28 Influence Increases 392 | 20 129 . 243 Destroy 0b10 Robot/C 260 | . 80 . 180 Destroy 0b10 Robot/NC 30 | 20 . . 10 Destroy Leader 64 | . 20 . 44 Successful Hack 22 | . 14 . 8 Disable Machine 15 | . 15 . . Destroy Structure 1 | . . . 1 Influence Decreases 291 | 15 104 30 142 Entered New Map 17 | . 2 15 . Time Decay 239 | 15 102 . 122 Lost Part 35 | . . 15 20 Squads Dispatched 3 | . 1 . 2 Investigation 1 | . . . 1 Extermination . | . . . . Reinforcement 2 | . 1 . 1 Assault . | . . . . Garrison . | . . . . Intercept . | . . . . Searches Triggered . | . . . . Construction Impeded . | . . . . Haulers Reinforced . | . . . . Active Scanning Responses . | . . . . Cargo Convoy Interrupts . | . . . . Stealth | -11 -10 -10 -8 --------- Run | Yrd Mat Sub Mat Distress Signals 1 | . . . 1 Communications Jammed . | . . . . Distress Signals . | . . . . Times Spotted 22 | . 5 5 12 Peak Tracking Total 4 | . 2 2 4 Tactical Retreats 1 | . . 1 . Traps | -11 -10 -10 -8 ------- Run | Yrd Mat Sub Mat Traps Triggered . | . . . . Indirectly . | . . . . Trap Hack Attempts . | . . . . Triggered . | . . . . Disarmed . | . . . . Reprogrammed . | . . . . Reused . | . . . . Traps Extracted . | . . . . Installed . | . . . . Triggered . | . . . . Machines | -11 -10 -10 -8 ---------- Run | Yrd Mat Sub Mat Machines Disabled 1 | . 1 . . Max in Single Turn 1 | . 1 . . Machines Repaired . | . . . . Machines Dismantled . | . . . . Machines Sabotaged . | . . . . Overloaded Fab Kills . | . . . . Hacking | -11 -10 -10 -8 --------- Run | Yrd Mat Sub Mat Machines Accessed 2 | . 1 . 1 Terminals 2 | . 1 . 1 Fabricators . | . . . . Repair Stations . | . . . . Recycling Units . | . . . . Scanalyzers . | . . . . Garrison Access . | . . . . Total Hacks 5 | . 2 . 3 Successful 2 | . 1 . 1 Failed 3 | . 1 . 2 Catastrophic 2 | . . . 2 Database Lockouts . | . . . . Manual 5 | . 2 . 3 Terminals 5 | . 2 . 3 Fabricators . | . . . . Repair Stations . | . . . . Recycling Units . | . . . . Scanalyzers . | . . . . Garrison Access . | . . . . Terminal Hacks 1 | . . . 1 Branch Access Points 1 | . . . 1 Fabricator Hacks . | . . . . Repair Station Hacks . | . . . . Recycling Unit Hacks . | . . . . Scanalyzer . | . . . . Garrison Access Hacks . | . . . . Unauthorized Hacks 1 | . 1 . . Terminals 1 | . 1 . . Skim 1 | . 1 . . Fabricators . | . . . . Repair Stations . | . . . . Recycling Units . | . . . . Scanalyzers . | . . . . Garrison Access . | . . . . Data Cores Recovered . | . . . . Used . | . . . . Hacking Detections 2 | . 1 . 1 Full Trace Events 1 | . . . 1 Feedback Events . | . . . . Feedback Blocked . | . . . . Robot Schematics Acquired . | . . . . Robots Built . | . . . . Authchips . | . . . . Time . | . . . . Total Robot Build Rating . | . . . . Part Schematics Acquired . | . . . . Parts Built . | . . . . Authchips . | . . . . Time . | . . . . Total Part Build Rating . | . . . . Parts Repaired . | . . . . Time . | . . . . Parts Recycled . | . . . . Recycled Matter . | . . . . Retrieved Matter . | . . . . Retrieved Components . | . . . . Parts Scanalyzed . | . . . . Part Schematics Acquired . | . . . . Parts Damaged . | . . . . Bothacking | -11 -10 -10 -8 ------------ Run | Yrd Mat Sub Mat Used RIF Installer . | . . . . Robots Hacked . | . . . . Non-combat . | . . . . Combat . | . . . . Robot Hacks Applied . | . . . . Relay Couplers Released . | . . . . Fabnet Peak Effective % . | . . . . Robots Rewired . | . . . . Allies Hacked . | . . . . Hacks Repelled . | . . . . Allies | -11 -10 -10 -8 -------- Run | Yrd Mat Sub Mat Total Allies . | . . . . Largest Group . | . . . . Highest-Rated Group . | . . . . Highest-Rated Ally . | . . . . Total Orders . | . . . . Ally Attacks . | . . . . Total Damage . | . . . . Kills . | . . . . Allies Corrupted . | . . . . Allies Melted . | . . . . Intel | -11 -10 -10 -8 ------- Run | Yrd Mat Sub Mat Active Infowar (turns) 961 | 2 294 246 419 Optics 132 | . . . 132 Seismic 961 | 2 294 246 419 Robot Analysis Total . | . . . . Derelict Logs Recovered 1 | . . 1 . Drone Launches . | . . . . Drone Recoveries . | . . . . Exploration | -11 -10 -10 -8 ------------- Run | Yrd Mat Sub Mat Turns Passed 1174 | 215 294 246 419 Spaces Moved 635 | 115 98 231 191 Core 29 | 29 . . . Treads 235 | 86 98 4 47 Legs 69 | . . . 69 Wheels 302 | . . 227 75 Hover . | . . . . Flight . | . . . . Fastest Speed 50 | 50 160 80 90 Average Speed 116 | 132 160 85 123 Slowest Speed 360 | 160 160 160 360 Overloaded Moves . | . . . . Propulsion Burnouts . | . . . . Robots Hopped . | . . . . Potential Cave-ins . | . . . . Cave-ins Triggered . | . . . . Exploration Rate (%) 13 | 6 18 14 15 Regions Visited 3 Branch Regions 1 Pre-discovered Areas 1 | . . 1 . Known Exits Taken . | . . . . Unknown Exits Taken 3 | 1 1 1 . Scrap Searched . | . . . . Spaces Dug . | . . . . Terrain Destroyed . | . . . . Melee . | . . . . Projectile . | . . . . AOE . | . . . . Terrain Rammed . | . . . . Walls Destroyed . | . . . . Machines Disabled . | . . . . Actions | -11 -10 -10 -8 --------- Run | Yrd Mat Sub Mat Total 936 | 166 189 264 317 Wait 123 | 26 67 14 16 Move 632 | 114 97 230 191 Hop . | . . . . Pick Up 31 | 12 2 2 15 Fast Attach 7 | 1 . . 6 Attach 21 | 6 . 1 14 Detach 2 | . . . 2 Swap 4 | . . 2 2 Drop 19 | 1 . 1 17 Fire 91 | 6 23 14 48 Melee . | . . . . Ram . | . . . . Kick . | . . . . Crush 6 | . . . 6 Escape Stasis . | . . . . Rewire . | . . . . Trap . | . . . . Miscellaneous . | . . . . Route ------- -11/Scrapyard -10/Materials -10/Subcaves -8/Materials History --------- Turn | Location | Event 7 | -11/Scrapyard | Discovered new exit (range 14) 216 | -11/Scrapyard | Entered Materials 312 | -10/Materials | Build established: Mutant 496 | -10/Materials | Discovered new exit (range 7) 510 | -10/Materials | Entered Subcaves 511 | -10/Subcaves | Approached by a straggling Scientist 512 | -10/Subcaves | Ambushed by Subdwellers from Twisted Machinery 561 | -10/Subcaves | Learned location of Zion (-6) 669 | -10/Subcaves | Core integrity fell below 50% 736 | -10/Subcaves | Discovered new exit (range 12) 756 | -10/Subcaves | Entered Materials 756 | -8/Materials | Evolved 4 slots: Propulsion x1, Utility x2, Weapon x1 1175 | -8/Materials | Self-destructed Last Messages --------------- 01124_ K-01 Serf collects debris. 01131_ Acquired 45 matter. 01135_ K-01 Serf collects debris. 01146_ R-06 Scavenger collects Aluminum Leg. 01148_ Y-45 Defender destroyed. 01150_ R-06 Scavenger collects Particle Gun. 01152_ K-01 Serf cleans the Matter Pump. 01158_ Connecting with Terminal... 01158_ Current location identified: Materials >>Access(Branch) No branch access points found. 01158_ ALERT: Suspicious activity at Terminal M002. Dispatching Investigation squad. 01159_ K-01 Serf collects debris. 01162_ K-01 Serf cleans the Matter Pump. 01164_ O-16 Technician: "IFF HANDSHAKE FAILED. SECURING TERMINAL." 01166_ K-01 Serf collects debris. 01171_ ALERT: Hostiles spotted, dispatching reinforcements to Terminal M003. 01173_ K-01 Serf collects debris. Map ----- +----------------------------------------------------+ | ?????????????????????????????????????????????????? | | ?????????????????????????????????????????????????? | | ?????????????????????????????????????????????????? | | ?????????????????????????????????????????????????? | | ?????????????????????????????????????????????????? | | ?????????????????????????????????????????????????? | | ?????????????????????????????????????????????????? | | ?????????????????????????????????????????????????? | | ?????????????????????????????????????????????????? | | ?????????????????????????????????????????????????? | | ?????????????????????????????????????????????????? | | ????????????????????????? ???????????????????????? | | ????????????????????????? ######?????????????????? | | ????????????????????????? ?????????????????? | | ?????????????????????????? ??????????????????? | | ?????????????????????????? ??????????????????? | | ??????????????????????????# #??????????????????? | | ??????????????????????????# #??????????????????? | | ??????????????????????????# #??????????????????? | | ??????????????????????????# +??????????????????? | | ??????????????????##+##???# r#??????????????????? | | ??????????????????? ??# #??????????????????? | | ???????????????????""o""?## ##?????????????????? | | ??????????????????""" T" # #########?????????? | | ????????????????# """ "" # """ #?????????? | | ????????????????# @u "T" #?????????? | | ????????????????# """ # #?????????? | | ????????????????? """ ! # #?????????? | | ????????????????? """ ?##### ! #?????????? | | ????????????????? [?????# % #??????#### | | ????????????????#######??????# *k #??????# | | ?????????????????????????????# r #??????# "" | | ?????????????????????????????# """ #??????# "" | | ?????????????????????????????# """ ######## "" | | ?????????????????????????????# """ % = = # | | ?????????????????????????????# *![[#= | | ?????????????????????????????# ! ! += | | ?????????????????????????????# #* | | ????????????????????????###### # | | ????????????????????????# * ####+######## # | | ????????????????????????# ## ## # | | ????????????????????????# | = ## ## # | | ????????????????????????#|| * ## ## # | | ????????????????????????# ! % ## + #### | | ????????????????????????#! ## """ !## #??? | | ????????????????????????##### ## """!! = ## #??? | | ???????????????????????????# = # """!*! ## #??? | | ???????????????????????????# # * ##+#### | | ???????????????????????????# " ########### | | ???????????????????????????# #?????????# = """ | +----------------------------------------------------+ Best States ------------- Heat Dissipation 59 Energy Generation 15 Energy Capacity 250 Matter Stores 300 Matter Capacity 300 Sight Range 21 Terrain Scan Density 10 Armor Coverage 225 Resistance: KI 30 Evasion (%) 57 Recoil Reduction 2 Item Schematics ----------------- None Robot Schematics ------------------ None Fabricated ------------ Nothing Repaired ---------- Nothing Alien Tech Used ----------------- None Achievements -------------- None Challenges ------------ None Game ------ Seed PulseFissionLoader Manual? 0 Play Time 00:11:21 Cumulative 353.8 hours Start 2025.10.05 @ 04:11:26 End 2025.10.05 @ 04:24:08 Sessions 1 Manual Loads 0 Difficulty Rogue Special Mode None Game No. 463 Rogue 463 Adventurer 0 Explorer 0 Win Type - Total 11 Types 6/0/1/2/1/0/1/0/0/0 Lore% 87 Gallery% 83 Achievement% 70 Wizard Run 0 Options --------- Layout 0 ASCII 0 Keyboard 0 Movement Mouse Keybinds 0 Fullscreen 1 Font 18/X11 Map View 76x50 Zoom Use 0% Tactical HUD 1 Map Filters NONE Filters NONE Steam 1 RUN: cc87dd0c-df34-440b-86da-eed70559a49c